[Event "41st BAN National Women Chess-ch 2022"]
[Site "Dhaka"]
[Date "2022.11.26"]
[Round "9.1"]
[White "Nusrat Jahan, Alo"]
[Black "Khan, Nazrana"]
[Result "1/2-1/2"]
[ECO "D02"]
[WhiteElo "1710"]
[BlackElo "1908"]
[Annotator "TA"]
[PlyCount "117"]
[EventDate "2022.11.17"]
[EventCountry "BAN"]
[SourceTitle "playchess.com"]
[Source "ChessBase"]
[SourceQuality "1"]
[TimeControl "40/5400+30:1800+30"]

{[%evp 15,117,-28,0,0,6,2,23,0,0,0,0,0,0,0,0,-15,118,-135,19,18,46,50,45,42,43,47,44,34,33,52,37,20,99,86,218,214,202,193,182,138,138,28,27,-169,-142,-230,-252,-276,-238,-225,-106,-106,-104,-104,-84,-84,-84,-149,-137,-165,-165,-165,-106,-106,-98,-105,-98,-98,-85,-91,-84,-84,-84,-89,-89,-84,-56,-56,-56,-56,-56,-84,-84,-84,-84,-84,-8,-8,-8,-8,-8,-8,-8,-8,0,0,0,0,0,0,0,0,0,0]} 1. d4 {[%emt 0:00:07]} d5 {[%emt 0:00:23]} 2. Bf4 {[%emt 0:00:22]} Nf6 {[%emt 0:00:24]} 3. e3 {[%emt 0:00:24]} c5 {[%emt 0:00:14]} 4. c3 {[%emt 0:00:18]} Nc6 {[%emt 0:00:11]} 5. Nf3 {[%emt 0:00:14]} Qb6 {[%emt 0:00:52]} 6. Qb3 {[%emt 0:00:14]} c4 {[%emt 0:00:30]} 7. Qxb6 {[%emt 0:00:12]} axb6 {[%emt 0:00:13]} 8. Na3 {[%emt 0:00:08]} Bf5 {[%emt 0:01:50]} 9. Nh4 {[%emt 0:09:40] D02: 1 d4 d5 2 Nf3 sidelines, including 2...Nf6 3 g3 and 2...Nf6 3 Bf4.} e6 {[%emt 0:04:06]} 10. Nxf5 {[%emt 0:13:46]} exf5 {[%emt 0:00:11]} 11. Nb5 {[%emt 0:07:05] And now Nc7+ would win. White has an edge.} Ra5 {[%emt 0:03:01]} 12. a4 {[%emt 0:02:19]} Kd7 {[%emt 0:03:49]} 13. Be2 {[%emt 0:08:02][%cal Bf1e2,Be2d1,Bd1b3][%mdl 32]} Be7 {[%emt 0:04:19] White must now prevent ...Rha8.} 14. Bd1 {[%emt 0:05:14]} Rha8 {[%emt 0:03:06]} 15. Rb1 {[%emt 0:05:14] [#]} Ne4 $146 {[%emt 0:05:19]} (15... Na7) (15... Na7 $1 $11) ({Predecessor:} 15... Na7 16. Nxa7 R8xa7 17. Bc2 g6 18. Bb8 Ra8 19. Be5 Ng4 20. Bg3 h5 21. h3 Nf6 {1-0 (60) Bleis,C (2252)-Andersen,E Copenhagen 2003}) 16. b4 $2 {[%emt 0:11:16][%mdl 8192]} (16. f3 Nf6 17. b4 cxb3 18. Bxb3) (16. f3 $16 {stays on course.} Nf6 17. b4 cxb3 18. Bxb3) 16... cxb3 $2 {[%emt 0:05:13]} (16... Rxa4 17. f3 (17. Bxa4 Rxa4 18. O-O Na7) 17... Nxc3 18. Nxc3 Bxb4) (16... Rxa4 $17 17. f3 (17. Bxa4 Rxa4 18. O-O Na7 $17) 17... Nxc3 $1 18. Nxc3 Bxb4 19. Rxb4 Rxb4 20. Nxd5 Rb2) 17. Bxb3 $11 {[%emt 0:00:21]} Na7 {[%emt 0:09:04]} 18. Nc7 {[%emt 0:08:24]} (18. Bxd5 Nxb5 19. Bxe4 (19. Rxb5 Rxb5 20. axb5 Ra1+ 21. Ke2 Rxh1) (19. axb5 Nxc3 20. Bxb7 Nxb1) 19... Nxc3) (18. Bxd5 $2 {is the wrong capture.} Nxb5 19. Bxe4 (19. Rxb5 $2 Rxb5 20. axb5 Ra1+ 21. Ke2 Rxh1 $19) (19. axb5 $2 Nxc3 20. Bxb7 Nxb1 $19) 19... Nxc3 $19) 18... Rc8 {[%emt 0:05:01]} 19. Nxd5 {[%emt 0:10:02]} (19. Bxd5 Nxc3 20. Rxb6 Rxc7) ({Inferior is} 19. Bxd5 Nxc3 20. Rxb6 Rxc7 $19) 19... Rxd5 {[%emt 0:00:29][%mdl 64] Remove Defender} 20. Bxd5 {[%emt 0:00:06][%mdl 64] Discovered Attack. This pair of bishops is nice.} Nxc3 {[%emt 0:00:54]} 21. Rxb6 {[%emt 0:03:04]} Nxd5 {[%emt 0:00:46]} 22. Rxb7+ {[%emt 0:00:01]} Kd8 {[%emt 0:01:47]} 23. O-O {[%emt 0:00:56]} (23. Rxa7 Rc1+ 24. Kd2 Rxh1) (23. Kd2 Bb4+ 24. Ke2 Nxf4+ 25. Kf3 (25. exf4 Rc2+ 26. Kf3 Rc3+ 27. Ke2 Rc2+ 28. Kf3 Rc3+ 29. Ke2 Rc2+)) ({Much weaker is} 23. Rxa7 Rc1+ 24. Kd2 Rxh1 $17) (23. Kd2 {keeps more tension.} Bb4+ 24. Ke2 Nxf4+ 25. Kf3) 23... Nxf4 {[%emt 0:03:01]} (23... Ra8) (23... Ra8 $11 {remains equal.}) 24. Rxa7 $16 {[%emt 0:01:33]} (24. exf4 Rc7 25. Rxc7 Kxc7) 24... Ne6 {[%emt 0:05:00]} (24... Ne2+ 25. Kh1 Rc7 26. Ra8+ Rc8) (24... Ne2+ $16 25. Kh1 Rc7 26. Ra8+ Rc8) 25. g3 $18 {[%emt 0:00:44]} Rc7 {[%emt 0:05:20]} 26. Ra5 {[%emt 0:00:20]} g6 {[%emt 0:00:35]} 27. Rd1 {[%emt 0:01:30]} (27. Ra8+ Rc8 28. Rxc8+ Kxc8 29. Rb1) 27... Kd7 {[%emt 0:03:31]} 28. Ra6 {[%emt 0:03:10]} (28. Rb1) (28. Rb1 $16) 28... Rb7 $1 $11 {[%emt 0:01:57] Strongly threatening ...Nc7.} 29. Ra5 $2 {[%emt 0:04:45] [#]} (29. a5) (29. a5 $11 {and White has nothing to worry.}) 29... Nc7 $1 $19 {[%emt 0:02:46]} 30. g4 {[%emt 0:05:20]} (30. h3) (30. e4 $17) 30... fxg4 {[%emt 0:02:10]} 31. Re5 {[%emt 0:00:33]} Ra7 {[%emt 0:01:49]} 32. d5 {[%emt 0:00:31][%cal Oe5e7]} Rxa4 {[%emt 0:03:06]} (32... Ne8 33. Re4 f5) (32... Ne8 $19 {is more deadly. Hoping for ...Nd6.} 33. Re4 f5) 33. Rxe7+ $17 {[%emt 0:00:09][%mdl 64] Remove Defender, Decoy} Kxe7 $19 {[%emt 0:00:13][%mdl 4096] Endgame KRN-KR} 34. d6+ {[%emt 0:00:03]} Kd7 {[%emt 0:00:13]} (34... Kf6 {looks sharper.} 35. dxc7 Rc4 36. Rd4 Rc1+) 35. dxc7+ {[%emt 0:00:05]} Kxc7 $17 {[%emt 0:00:22] KR-KR} 36. Rc1+ {[%emt 0:00:07]} (36. Kg2) (36. Kg2 $142) 36... Kd7 {[%emt 0:00:25]} 37. Rc5 {[%emt 0:00:50]} (37. Kg2) 37... h5 {[%emt 0:01:04]} 38. Kg2 {[%emt 0:00:30]} Ra6 {[%emt 0:01:07]} (38... Kd6 39. Rc2 g5) (38... Ra2 $19 39. Rb5 Ke6) 39. h3 {[%emt 0:00:55]} Ra4 {[%emt 0:03:38]} 40. Rb5 {[%emt 0:00:46]} gxh3+ {[%emt 0:01:13]} 41. Kxh3 {[%emt 0:30:07]} Rg4 {[%emt 0:32:37]} 42. f3 {[%emt 0:00:00]} Rg1 {[%emt 0:00:00]} 43. e4 {[%emt 0:00:00]} Ke6 {[%emt 0:00:00]} 44. Kh2 {[%emt 0:00:00]} Rd1 {[%emt 0:00:00]} 45. Kg3 {[%emt 0:00:00]} f6 {[%emt 0:00:00]} 46. f4 {[%emt 0:00:00] Inhibits g5.} Rd3+ {[%emt 0:00:00]} 47. Kf2 {[%emt 0:00:00]} Ke7 {[%emt 0:00:00]} 48. e5 {[%emt 0:00:00]} fxe5 {[%emt 0:00:00]} 49. Rxe5+ {[%emt 0:00:00]} Kf6 {[%emt 0:00:00]} 50. Rg5 {[%emt 0:00:00]} h4 {[%emt 0:00:00]} (50... Ra3) (50... Rb3 $17) 51. Kg2 $11 {[%emt 0:00:00] The position is equal.} h3+ {[%emt 0:00:00]} (51... Rb3 {simplifies} 52. Rg4 Ra3 53. Rxh4 Kf5) 52. Kh2 {[%emt 0:00:00]} Rf3 {[%emt 0:00:00]} 53. Ra5 {[%emt 0:00:00]} Rxf4 {[%emt 0:00:00] Threatens to win with ...Rf3.} 54. Kxh3 {[%emt 0:00:00]} g5 {[%emt 0:00:00]} 55. Kg3 {[%emt 0:00:00]} Kg6 {[%emt 0:00:00]} 56. Ra8 {[%emt 0:00:00]} Rb4 {[%emt 0:00:00]} 57. Rg8+ {[%emt 0:00:00]} Kf6 {[%emt 0:00:00]} 58. Rf8+ {[%emt 0:00:00]} Kg7 {[%emt 0:00:00]} 59. Ra8 {[%emt 0:00:00] Black had all chances to win.   Weighted Error Value: White=0.28 (precise) /Black=0.24 (precise)} 1/2-1/2

[Event "41st BAN National Women Chess-ch 2022"]
[Site "Dhaka"]
[Date "2022.11.26"]
[Round "9.2"]
[White "Tasnia Tarannum, Orpa"]
[Black "Talukder, Umme Taslima Protiva"]
[Result "0-1"]
[ECO "B07"]
[WhiteElo "1662"]
[BlackElo "1780"]
[Annotator "NA RC COMBH"]
[PlyCount "130"]
[EventDate "2022.11.17"]
[EventCountry "BAN"]
[SourceTitle "playchess.com"]
[Source "ChessBase"]
[SourceQuality "1"]
[TimeControl "40/5400+30:1800+30"]

1. d4 {[%emt 0:00:09]} Nf6 {[%emt 0:00:51]} 2. Bf4 {[%emt 0:00:08]} g6 {[%emt 0:00:05]} 3. Nc3 {[%emt 0:00:09]} Bg7 {[%emt 0:01:06]} 4. e4 {[%emt 0:00:13]} d6 {[%emt 0:00:20]} 5. Qd2 {[%emt 0:00:17]} h5 {[%emt 0:04:02]} 6. Nf3 {[%emt 0:03:39]} c6 {[%emt 0:04:00]} 7. O-O-O {[%emt 0:02:43]} a5 {[%emt 0:10:37]} 8. a4 {[%emt 0:02:47]} Na6 {[%emt 0:03:24]} 9. e5 {[%emt 0:03:45]} dxe5 {[%emt 0:01:43]} 10. Nxe5 {[%emt 0:01:12]} Nb4 {[%emt 0:04:05]} 11. f3 {[%emt 0:01:21]} Bf5 {[%emt 0:01:02]} 12. Bc4 {[%emt 0:02:27]} e6 {[%emt 0:05:05]} 13. Bb3 {[%emt 0:00:07]} Nfd5 {[%emt 0:03:21]} 14. Nxd5 {[%emt 0:04:39]} cxd5 {[%emt 0:03:33]} 15. Kb1 {[%emt 0:04:38]} f6 {[%emt 0:05:46]} 16. Nd3 {[%emt 0:00:25]} Nxd3 {[%emt 0:00:45]} 17. cxd3 {[%emt 0:00:32]} Qb6 {[%emt 0:02:27]} 18. Qc3 {[%emt 0:00:45]} Kd7 {[%emt 0:07:24]} 19. Ba2 {[%emt 0:00:54]} Rhc8 {[%emt 0:01:10]} 20. Qb3 {[%emt 0:00:07]} Qxb3 {[%emt 0:00:31]} 21. Bxb3 {[%emt 0:00:06]} Rc6 {[%emt 0:04:17]} 22. h3 {[%emt 0:00:11]} g5 {[%emt 0:00:25]} 23. Bh2 {[%emt 0:00:33]} Rac8 {[%emt 0:01:03]} 24. Rhe1 {[%emt 0:02:33]} Rb6 {[%emt 0:04:28]} 25. Ka2 {[%emt 0:00:53]} Rb4 {[%emt 0:01:07]} 26. Rc1 {[%emt 0:00:39]} Rc6 {[%emt 0:01:01]} 27. Rc3 {[%emt 0:01:04]} Rxd4 {[%emt 0:01:52]} 28. Rec1 {[%emt 0:00:18]} Rxd3 {[%emt 0:02:15]} 29. Rxc6 {[%emt 0:00:05]} bxc6 {[%emt 0:00:10]} 30. Rc5 {[%emt 0:00:13]} Rd2 {[%emt 0:12:28]} 31. Rxa5 {[%emt 0:00:34]} Bf8 {[%emt 0:01:06]} 32. Ra7+ {[%emt 0:00:53]} Ke8 {[%emt 0:00:18]} 33. a5 {[%emt 0:03:44]} e5 {[%emt 0:02:01]} 34. a6 {[%emt 0:03:18]} Bc5 {[%emt 0:00:38]} 35. Ra8+ {[%emt 0:00:16]} Kd7 {[%emt 0:01:23]} 36. a7 {[%emt 0:00:16]} Bxa7 {[%emt 0:01:55]} 37. Rxa7+ {[%emt 0:00:05]} Kd6 {[%emt 0:00:32]} 38. Bg1 {[%emt 0:00:50]} d4 {[%emt 0:00:41]} 39. g4 {[%emt 0:01:08]} hxg4 {[%emt 0:00:10]} 40. hxg4 {[%emt 0:00:05]} Bd7 {[%emt 0:01:08]} 41. Ra4 {[%emt 0:31:00]} Rg2 {[%emt 0:32:10]} 42. Bxd4 {[%emt 0:01:27]} exd4 {[%emt 0:00:16]} 43. Rxd4+ {[%emt 0:00:05]} Kc7 {[%emt 0:00:47]} 44. Bc4 {[%emt 0:04:10]} Rf2 {[%emt 0:00:25]} 45. Rd3 {[%emt 0:00:22]} f5 {[%emt 0:03:18]} 46. gxf5 {[%emt 0:00:43]} Bxf5 {[%emt 0:00:02]} 47. Re3 {[%emt 0:00:24]} Kd6 {[%emt 0:00:44]} 48. Bd3 {[%emt 0:02:34]} Be6+ {[%emt 0:00:50]} 49. Ka3 {[%emt 0:00:49]} Bd5 {[%emt 0:01:26]} 50. Be4 {[%emt 0:01:19]} Bxe4 {[%emt 0:00:21]} 51. fxe4 {[%emt 0:00:38]} Ke5 {[%emt 0:00:43]} 52. Rc3 {[%emt 0:01:10]} Rf6 {[%emt 0:02:03]} 53. Rc5+ {[%emt 0:07:31]} Kf4 {[%emt 0:00:28]} 54. Kb3 {[%emt 0:01:31]} g4 {[%emt 0:00:40]} 55. e5 {[%emt 0:01:40]} Re6 {[%emt 0:00:29]} 56. Rc4+ {[%emt 0:00:09]} Kf3 {[%emt 0:00:00]} 57. Rc3+ {[%emt 0:00:00]} Kf4 {[%emt 0:00:00]} 58. Rc4+ {[%emt 0:00:00]} Kf5 {[%emt 0:00:00]} 59. Kc3 {[%emt 0:00:00]} g3 {[%emt 0:00:00]} 60. Kd4 {[%emt 0:00:00]} g2 {[%emt 0:00:00]} 61. Rc1 {[%emt 0:00:00]} Rxe5 {[%emt 0:00:00]} 62. Rg1 {[%emt 0:00:00]} Re2 {[%emt 0:00:00]} 63. b4 {[%emt 0:00:00]} Kf4 {[%emt 0:00:00]} 64. Kc5 {[%emt 0:48:17]} Rc2+ {[%emt 0:00:00]} 65. Kd6 {[%emt 0:00:00]} Kf3 {[%emt 0:00:00]} 0-1

[Event "41st BAN National Women Chess-ch 2022"]
[Site "Dhaka"]
[Date "2022.11.26"]
[Round "9.3"]
[White "Noshin, Anjum"]
[Black "Wadifa, Ahmed"]
[Result "1-0"]
[ECO "C48"]
[WhiteElo "1907"]
[BlackElo "1656"]
[Annotator "TA"]
[PlyCount "101"]
[EventDate "2022.11.17"]
[EventCountry "BAN"]
[SourceTitle "playchess.com"]
[Source "ChessBase"]
[SourceQuality "1"]
[TimeControl "40/5400+30:1800+30"]

{[%evp 14,101,0,-2,0,0,0,-20,145,126,160,149,156,55,71,60,102,93,136,141,148,155,521,513,502,404,672,395,397,280,270,276,265,276,419,412,419,421,410,361,354,343,614,585,609,613,623,629,621,607,593,583,676,670,664,664,648,643,620,583,2021,1880,5720,5297,29978,29979,29982,29983,29984,29978,29981,29982,29982,29984,29986,29987,29987,29982,29982,29983,29983,29984,29984,29985,29985,29984,29984,29985,29985,29986]} 1. e4 {[%emt 0:00:12]} e5 {[%emt 0:00:09]} 2. Nf3 {[%emt 0:00:08]} Nf6 {[%emt 0:00:05]} 3. Nc3 {[%emt 0:00:04]} Nc6 {[%emt 0:00:08]} 4. Bb5 {[%emt 0:00:07]} Bc5 {[%emt 0:00:08]} 5. O-O {[%emt 0:00:17]} O-O {[%emt 0:01:37]} 6. Nxe5 {[%emt 0:00:18]} Nxe5 {[%emt 0:01:19]} 7. d4 {[%emt 0:00:07]} Bd6 {[%emt 0:02:56]} 8. f4 {[%emt 0:00:06]} Neg4 {[%emt 0:00:05] C48: Four Knights: 4 Bb5, replies other than 4...Bb4.} (8... Nc6 {simplifies} 9. e5 Be7 10. exf6 Bxf6 11. d5 Nb4) 9. e5 {[%emt 0:00:06]} Bb4 {[%emt 0:02:42][%cal Oc7c6]} 10. h3 {[%emt 1:34:05][%mdl 64] [#] Deflection} (10. Qf3 $5) 10... Nh6 {[%emt 0:00:49]} ({Don't play} 10... Bxc3 11. bxc3 d6 12. Qf3 $14 (12. exf6 Nxf6 13. Re1 c5 $11) (12. hxg4 Nxg4 13. g3 h5 $11)) ({Better is} 10... d6 $1 $11) 11. exf6 $16 {[%emt 0:00:00]} Qxf6 {[%emt 0:03:11] [#]} 12. Nd5 $146 {[%emt 0:00:00][%csl LRb4,LRc7,LRf6] Prevents c6.} ({Predecessor:} 12. Ne4 Qb6 13. a4 d5 14. Ng5 Nf5 15. c3 Be7 16. Bd3 h6 17. Nf3 c5 18. Bxf5 Bxf5 {0-1 (81) Sharma,D (2243)-Van Foreest,L (2488) Chess.com INT 2018}) 12... Qd6 {[%emt 0:01:25] [#]} 13. Nxb4 {[%emt 0:00:00] White is much more active.} (13. Ne3 $1 $16) 13... Qxb4 $14 {[%emt 0:00:10]} 14. a4 {[%emt 0:00:00]} d5 {[%emt 0:02:41] [#]} 15. b3 $1 $36 {[%emt 0:00:00][%mdl 2048] White is really pushing.} Nf5 {[%emt 0:08:52]} 16. Ba3 {[%emt 0:00:00]} Qc3 {[%emt 0:00:08]} 17. Bxf8 {[%emt 0:00:00]} Ne3 $2 {[%emt 0:14:15] A mistake that costs the game.} (17... Kxf8 $16 {is a better chance.} 18. Qd3 Qxd4+ 19. Qxd4 Nxd4) 18. Qe1 $18 {[%emt 0:00:00]} Qxd4 {[%emt 0:01:22]} 19. Qf2 {[%emt 0:00:00]} c6 {[%emt 0:06:17]} (19... Bf5 $142 20. Bb4 Qb6) 20. Rfe1 {[%emt 0:00:00]} Kxf8 {[%emt 0:01:35]} 21. Qxe3 {[%emt 0:00:00]} Qxe3+ {[%emt 0:00:09]} 22. Rxe3 {[%emt 0:00:00]} cxb5 {[%emt 0:00:09]} 23. axb5 {[%emt 0:00:00][%mdl 4096] Endgame Black must now prevent Re5. KRR-KRB} Bf5 {[%emt 0:00:34]} (23... Bd7 $142 24. c4 dxc4 25. bxc4 a5) 24. Rc3 {[%emt 0:00:00]} Be4 {[%emt 0:03:23]} 25. Rc7 {[%emt 0:00:00]} d4 {[%emt 0:00:06]} 26. Rd1 {[%emt 0:00:00]} ({Resist} 26. Ra4 Rd8 27. Rxa7 g6 $18) 26... Rd8 {[%emt 0:00:08]} 27. Rc4 {[%emt 0:00:00]} f5 $2 {[%emt 0:01:55]} (27... Rd5 28. g4 g6 29. Rcxd4 Rxd4 30. Rxd4 Bxc2) 28. Rdxd4 {[%emt 0:00:00]} Rxd4 {[%emt 0:00:07]} 29. Rxd4 {[%emt 0:00:00]} Bxc2 {[%emt 0:00:08] KR-KB} 30. Rd7 {[%emt 0:00:00]} Be4 {[%emt 0:00:08]} 31. Kf2 {[%emt 0:00:00]} h6 {[%emt 0:01:05]} 32. g3 {[%emt 0:00:00]} Kg8 {[%emt 0:00:12]} 33. Rd8+ {[%emt 0:00:00]} Kf7 {[%emt 0:00:09]} 34. Ra8 {[%emt 0:00:00]} Ke7 {[%emt 0:00:28]} 35. Rxa7 {[%emt 0:00:00]} Kd6 {[%emt 0:00:04]} 36. Ra8 {[%emt 0:00:00][%cal Ba7a8,Ba8g8,Bg8g7,Bg7h7,Bh7h6,Bh6b6,Bb6b7][%mdl 32]} Kc5 {[%emt 0:00:03]} 37. Rg8 {[%emt 0:00:00]} Kxb5 {[%emt 0:00:13]} 38. Rxg7 {[%emt 0:00:00] Rh7 would kill now.} Kb4 {[%emt 0:00:08]} 39. Rh7 {[%emt 0:00:00] White mates.} Kxb3 {[%emt 0:00:36]} 40. Rxh6 {[%emt 0:00:00]} b5 {[%emt 0:00:06]} 41. Rb6 {[%emt 0:00:00]} b4 {[%emt 0:30:06]} 42. h4 {[%emt 0:00:00][%cal Bh3h4,Bh4h5][%mdl 32]} Kc3 {[%emt 0:00:07]} 43. h5 {[%emt 0:00:00]} Bd5 {[%emt 0:01:23]} 44. h6 {[%emt 0:00:00]} Bg8 {[%emt 0:00:03]} 45. Rb7 {[%emt 0:00:00]} b3 {[%emt 0:00:24]} 46. h7 {[%emt 0:00:00]} Bxh7 {[%emt 0:00:02]} 47. Rxh7 {[%emt 0:00:00]} b2 {[%emt 0:00:05]} 48. Rb7 {[%emt 0:00:00]} Kc2 {[%emt 0:00:06]} 49. Ke3 {[%emt 0:00:00]} b1=Q {[%emt 0:00:08]} 50. Rxb1 {[%emt 0:00:00]} Kxb1 {[%emt 0:00:10]} 51. Kd4 {[%emt 0:00:00] Weighted Error Value: White=0.40/Black=0.92} 1-0

[Event "41st BAN National Women Chess-ch 2022"]
[Site "Dhaka"]
[Date "2022.11.26"]
[Round "9.4"]
[White "Jannatul, Ferdous"]
[Black "Sabiha, Marjana"]
[Result "1-0"]
[ECO "B07"]
[WhiteElo "1861"]
[BlackElo "1267"]
[Annotator "NA RC COMBH"]
[PlyCount "68"]
[EventDate "2022.11.17"]
[EventCountry "BAN"]
[SourceTitle "playchess.com"]
[Source "ChessBase"]
[SourceQuality "1"]
[TimeControl "40/5400+30:1800+30"]

{[%evp 8,67,54,32,38,37,68,71,61,69,131,128,544,25,32,32767,32767,32767,32767,7,8,12,14,0,39,31,87,29,33,25,56,59,99,68,209,71,225,131,157,177,297,297,306,340,445,451,502,519,1105,873,1089,1317,1003,1255,1757,2263,1844,29988,6325,29990,29980,29991]} 1. d4 {[%emt 0:00:11]} d6 {[%emt 0:00:32]} 2. e4 {[%emt 0:00:16]} Nf6 {[%emt 1:30:58]} 3. Nc3 c6 {[%emt 0:00:00]} 4. f4 {[%emt 0:00:09]} Qa5 {[%emt 0:00:00]} 5. Bd3 {[%emt 0:00:03]} e5 {[%emt 0:00:00]} 6. Nf3 {[%emt 0:02:11]} Bg4 {[%emt 0:00:00] [#]} 7. Be3 $1 {[%emt 0:00:40]} exf4 {[%emt 0:00:00]} 8. Bxf4 {[%emt 0:00:46]} Qb4 {[%emt 0:00:00] [#]} ({Better is} 8... Qb6 $14) 9. a3 $1 {[%emt 0:24:04]} Qxb2 $2 {[%emt 0:00:00]} (9... Qb6 $16 {is a better chance.}) 10. Bd2 $2 {[%emt 0:03:06]} (10. Na4 $18 Qxa1 11. Qxa1) 10... Bxf3 {[%emt 0:00:00]} 11. gxf3 {[%emt 0:00:04]} Qb6 {[%emt 0:00:00]} 12. Be3 {[%emt 0:01:59]} Be7 {[%emt 0:00:00]} 13. Qd2 {[%emt 0:06:52]} Qc7 {[%emt 0:00:00]} 14. O-O {[%emt 0:01:29]} Nbd7 {[%emt 0:00:00]} 15. a4 {[%emt 0:01:10]} a5 {[%emt 0:00:00]} 16. Rab1 {[%emt 0:05:39]} h6 {[%emt 0:00:00]} (16... O-O $14) 17. f4 {[%emt 0:08:05]} ({White should try} 17. Rb3 $16) 17... Ng4 {[%emt 0:00:00]} 18. Kh1 {[%emt 0:01:39]} Nxe3 {[%emt 0:00:00]} 19. Qxe3 {[%emt 0:00:02]} g5 {[%emt 0:00:00] [#]} (19... d5 $14 {might be stronger.}) 20. Bc4 {[%emt 0:13:03]} (20. Rb3 $1 $16) 20... f6 {[%emt 0:00:00]} ({Better is} 20... g4 $14) 21. f5 {[%emt 0:02:07]} ({White should play} 21. Qh3) 21... g4 $2 {[%emt 0:00:00]} (21... h5 $16 {was called for.}) 22. Ba2 {[%emt 0:04:28]} (22. Ne2 $18) 22... h5 {[%emt 0:00:00] [#]} 23. Ne2 $1 {[%emt 0:02:07]} Bf8 {[%emt 0:00:00]} (23... Rh7 $142 24. Nf4 Nf8) 24. Qb3 {[%emt 0:02:25]} O-O-O {[%emt 0:00:00]} 25. Nf4 {[%emt 0:00:48]} Re8 {[%emt 0:00:00]} 26. Ne6 {[%emt 0:01:30]} Qb8 {[%emt 0:00:00]} 27. Qc3 {[%emt 0:01:43]} Bh6 {[%emt 0:00:00]} 28. Bd5 {[%emt 0:01:53]} Rxe6 {[%emt 0:00:00]} 29. fxe6 {[%emt 0:02:12]} Qc7 {[%emt 0:00:00]} 30. exd7+ {[%emt 0:00:58]} Kxd7 {[%emt 0:02:21]} 31. Rxf6 {[%emt 0:00:25]} Bg5 {[%emt 0:05:39]} 32. Be6+ {[%emt 0:03:20]} Ke8 $18 {[%emt 0:01:10]} 33. Rf7 {[%emt 0:00:20]} Be7 {[%emt 0:00:22]} 34. d5 {[%emt 0:01:06]} Rg8 {[%emt 0:00:00]} 1-0

[Event "41st BAN National Women Chess-ch 2022"]
[Site "Dhaka"]
[Date "2022.11.26"]
[Round "9.5"]
[White "Hamid, Rani"]
[Black "Warsia, Khusbu"]
[Result "1/2-1/2"]
[ECO "B32"]
[WhiteElo "1760"]
[BlackElo "1540"]
[Annotator "NA RC COMBH"]
[PlyCount "126"]
[EventDate "2022.11.17"]
[EventCountry "BAN"]
[SourceTitle "playchess.com"]
[Source "ChessBase"]
[SourceQuality "1"]
[TimeControl "40/5400+30:1800+30"]

1. e4 {[%emt 0:02:32]} c5 {[%emt 0:00:15]} 2. Nf3 {[%emt 0:00:11]} Nc6 {[%emt 0:00:11]} 3. d4 {[%emt 0:00:19]} cxd4 {[%emt 0:00:13]} 4. Nxd4 {[%emt 0:00:05]} e5 {[%emt 0:00:17]} 5. Nxc6 {[%emt 0:01:04]} bxc6 {[%emt 0:00:24]} 6. Bd3 {[%emt 0:00:23]} Nf6 {[%emt 0:01:07]} 7. O-O {[%emt 0:00:16]} Bc5 {[%emt 0:00:14]} 8. Nd2 {[%emt 0:02:20]} O-O {[%emt 0:00:36]} 9. Nc4 {[%emt 0:06:31]} Re8 {[%emt 0:04:57]} 10. Bg5 {[%emt 0:01:46]} h6 {[%emt 0:01:13]} 11. Bh4 {[%emt 0:00:43]} d5 {[%emt 0:02:47]} 12. Nd2 {[%emt 0:01:51]} Rb8 {[%emt 0:02:00]} 13. Rb1 {[%emt 0:04:50]} Qd6 {[%emt 0:03:15]} 14. c3 {[%emt 0:11:22]} Bg4 {[%emt 0:11:17]} 15. Qc2 {[%emt 1:03:47]} Nh5 {[%emt 0:02:19]} 16. Rfe1 {[%emt 0:00:00]} Nf4 {[%emt 0:02:14]} 17. Bf1 {[%emt 0:00:00]} Qg6 {[%emt 0:03:15]} 18. Bg3 {[%emt 0:00:00]} Nh5 {[%emt 0:04:55]} 19. Bd3 {[%emt 0:00:00]} Nxg3 {[%emt 0:04:18]} 20. hxg3 {[%emt 0:00:00]} Qf6 {[%emt 0:01:03]} 21. Nf1 {[%emt 0:00:00]} d4 {[%emt 0:01:09]} 22. cxd4 {[%emt 0:00:00]} Bxd4 {[%emt 0:00:39]} 23. b4 {[%emt 0:00:00]} c5 {[%emt 0:02:04]} 24. bxc5 {[%emt 0:00:00]} Rxb1 {[%emt 0:01:25]} 25. Rxb1 {[%emt 0:00:00]} Rc8 {[%emt 0:00:06]} 26. Ne3 {[%emt 0:00:00]} Bd7 {[%emt 0:03:47]} 27. Qe2 {[%emt 0:00:00]} Bxc5 {[%emt 0:01:53]} 28. Nd5 {[%emt 0:00:00]} Qd6 {[%emt 0:03:36]} 29. Kh2 {[%emt 0:00:00]} Be6 {[%emt 0:00:46]} 30. Ba6 {[%emt 0:00:00]} Rc6 {[%emt 0:05:35]} 31. Bb7 {[%emt 0:00:00]} Bxd5 {[%emt 0:00:08]} 32. exd5 {[%emt 0:00:00]} Rb6 {[%emt 0:00:16]} 33. Rxb6 {[%emt 0:00:00]} Qxb6 {[%emt 0:02:48]} 34. Bc6 {[%emt 0:00:00]} Bxf2 {[%emt 0:01:43]} 35. Qxe5 {[%emt 0:00:00]} Qe3 {[%emt 0:00:35]} 36. Qb8+ {[%emt 0:00:00]} Kh7 {[%emt 0:00:14]} 37. Qf4 {[%emt 0:00:00]} Kg6 {[%emt 0:07:21]} 38. d6 {[%emt 0:05:57]} Bg1+ {[%emt 0:01:31]} 39. Kh3 {[%emt 0:00:06]} Qe6+ {[%emt 0:01:07]} 40. g4 {[%emt 0:00:43]} Qe3+ {[%emt 0:00:55]} 41. Qf3 {[%emt 0:30:52]} Qxf3+ {[%emt 0:31:22]} 42. gxf3 {[%emt 0:00:02]} Kf6 {[%emt 0:00:37]} 43. Bd5 {[%emt 0:01:39]} g5 {[%emt 0:02:14]} 44. a4 {[%emt 0:03:33]} Bc5 {[%emt 0:00:54]} 45. d7 {[%emt 0:00:21]} Ke7 {[%emt 0:00:12]} 46. Bc6 {[%emt 0:00:21]} Bb6 {[%emt 0:00:05]} 47. Bb5 {[%emt 0:00:43]} Ke6 {[%emt 0:00:44]} 48. Kg2 {[%emt 0:00:09]} Ke5 {[%emt 0:00:20]} 49. Kf1 {[%emt 0:00:06]} Kf4 {[%emt 0:00:24]} 50. Kg2 {[%emt 0:00:00]} f5 {[%emt 0:00:00]} 51. gxf5 {[%emt 0:00:00]} Kxf5 {[%emt 0:00:00]} 52. Bd3+ {[%emt 0:00:00]} Ke6 {[%emt 0:00:00]} 53. Bb5 {[%emt 0:00:00]} h5 {[%emt 0:00:00]} 54. Kg3 {[%emt 0:00:00]} Bc7+ {[%emt 0:00:00]} 55. Kh3 {[%emt 0:00:00]} a6 {[%emt 0:00:00]} 56. Bxa6 {[%emt 0:00:00]} Kxd7 {[%emt 0:00:00]} 57. Bd3 {[%emt 0:00:00]} Ke6 {[%emt 0:00:00]} 58. Bg6 {[%emt 0:00:00]} h4 {[%emt 0:00:00]} 59. Kg4 {[%emt 0:00:00]} Kf6 {[%emt 0:00:00]} 60. Be8 {[%emt 0:00:00]} Ba5 {[%emt 0:00:00]} 61. Bd7 {[%emt 0:00:00]} Bd2 {[%emt 0:00:00]} 62. Kh3 {[%emt 0:00:00]} Ke5 {[%emt 0:00:00]} 63. Kg2 {[%emt 0:00:00]} Kf4 {[%emt 0:00:00]} 1/2-1/2